Cogmind - Beta 17.1 @@@ ROGUE MODE // 2026.08.30 @ 02:20:33 Player: TheSkyeDoctor Result: Destroyed by G-47 Trooper with Particle Gun Performance ------------- Evolutions (2) 1000 Regions Visited (5) 1000 Robots Destroyed (20) 100 Value Destroyed (414) 414 Prototype IDs (0) 0 Alien Tech Used (0) 0 Bonus (0) 0 TOTAL SCORE: 2514 Bonus ------- None Cogmind --------- Core Integrity 0/550 Matter 252/300 Energy 98/100 System Corruption 0% Temperature Cool (9) Movement Core (50) Location -8/Materials Parts ------- > --- POWER (2) -------- (None) > --- PROPULSION (3) --- (None) > --- UTILITY (4) ------ Signal Interpreter Advanced Targeting Computer > --- WEAPON (2) ------- (None) > --- INVENTORY (5) ---- Large Storage Unit High-capacity Battery (250) High-capacity Matter Pod (200) Improved Terrain Scanner Peak State ------------ > --- POWER ------------ (None) > --- PROPULSION ------- Aluminum Leg > --- UTILITY ---------- Small Storage Unit Signal Interpreter Advanced Targeting Computer Reaction Control System > --- WEAPON ----------- Particle Gun Light Assault Rifle > --- INVENTORY -------- High-capacity Battery High-capacity Matter Pod Improved Terrain Scanner [Rating: 12] Favorites ----------- Power Ion Engine Engine Ion Engine Propulsion Light Treads Treads Light Treads Leg Aluminum Leg Utility Small Storage Unit Device Seismic Detector Storage Small Storage Unit Processor Signal Interpreter Protection Light Armor Plating Weapon Assault Rifle Energy Gun Particle Gun Energy Cannon Beam Cannon Ballistic Gun Assault Rifle Launcher Grenade Launcher Build | -11 -10 -10 -10 -9 -8 ------- Run | Yrd Mat Min Exi Min Mat Slots Evolved 4 | . . . . . 4 Power 1 | . . . . . 1 Propulsion 1 | . . . . . 1 Utility 2 | . . . . . 2 Weapon . | . . . . . . Parts Attached 22 | 8 1 . . 1 12 Power 3 | 1 1 . . . 1 Engine 3 | 1 1 . . . 1 Core . | . . . . . . Reactor . | . . . . . . Propulsion 5 | 2 . . . . 3 Treads 4 | 2 . . . . 2 Leg 1 | . . . . . 1 Wheel . | . . . . . . Hover . | . . . . . . Flight . | . . . . . . Utility 8 | 3 . . . . 5 Device 4 | 2 . . . . 2 Storage 1 | 1 . . . . . Processor 2 | . . . . . 2 Hackware . | . . . . . . Protection 1 | . . . . . 1 Artifact . | . . . . . . Weapon 6 | 2 . . . 1 3 Energy Gun 1 | . . . . . 1 Energy Cannon 1 | . . . . 1 . Ballistic Gun 3 | 2 . . . . 1 Ballistic Cannon . | . . . . . . Launcher 1 | . . . . . 1 Special Weapon . | . . . . . . Impact Weapon . | . . . . . . Slashing Weapon . | . . . . . . Piercing Weapon . | . . . . . . Special Melee Weapon . | . . . . . . Unidentified Prototypes . | . . . . . . Parts Lost 17 | . . . . 1 16 Power 2 | . . . . . 2 Propulsion 5 | . . . . . 5 Utility 4 | . . . . . 4 Weapon 6 | . . . . 1 5 Highest Loss Streak 8 | . . . . 1 8 To Critical Strikes . | . . . . . . Average Backups 6 | . 4 6 8 7 3 Power . | . 1 1 1 1 . Propulsion . | . . . . . . Utility 4 | . 3 4 5 5 3 Weapon 1 | . . 1 2 1 . Tool/Special . | . . . . . . Unused Backups 5 | . 1 . . . 4 Power 1 | . 1 . . . . Propulsion . | . . . . . . Utility 4 | . . . . . 4 Weapon . | . . . . . . Tool/Special . | . . . . . . Average Slot Usage (%) 91 | . 100 100 100 99 57 Engine 12 | . 14 14 14 14 4 Treads 24 | . 28 28 28 28 12 Device 12 | . 14 14 14 14 4 Storage 12 | . 14 14 14 14 8 Processor 3 | . . . . . 16 Ballistic Gun 23 | . 28 28 28 26 3 Peak Build Rating 12 | 7 7 8 8 8 12 Average Rating 7 | 5 7 7 8 7 8 On Entrance 6 | . 7 7 8 8 7 Avg Prop Armor Cover (%) . | . . . . . . Naked Turns . | . . . . . . Heaviest Build 24 | 13 15 15 15 16 24 Greatest Support 40 | 40 40 40 40 40 40 Greatest Overweight (x) 2 | . . . . . 2 Average Overweight (x) . | . . . . . . Largest Inventory Capacity 8 | 8 8 8 8 8 8 Average Capacity 7 | 6 8 8 8 8 7 Most Carried 8 | 2 7 8 8 8 6 Average Carried 6 | . 5 6 8 7 3 Final Capacity 8 | 8 8 8 8 8 5 Final Carried 8 | 2 6 8 8 7 4 Class Distribution -------------------- 100% | Mutant Dominant Class ---------------- Mutant | -10/Materials Mutant | -10/Mines Mutant | -10/Exiles Mutant | -9/Mines Mutant | -8/Materials Resources | -11 -10 -10 -10 -9 -8 ----------- Run | Yrd Mat Min Exi Min Mat Matter Collected 769 | 316 66 85 143 62 97 Remotely 124 | 124 . . . . . Salvage Created 605 | 120 76 44 . 127 238 Parts 47 | 8 10 7 . 9 13 Haulers Intercepted 1 | . 1 . . . . Recyclers Shooed . | . . . . . . Parts Field Recycled . | . . . . . . Retrieved Matter . | . . . . . . Parts Self-Destructed . | . . . . . . Prevented . | . . . . . . Parts Restored . | . . . . . . Kills | -11 -10 -10 -10 -9 -8 ------- Run | Yrd Mat Min Exi Min Mat Combat Hostiles Destroyed 13 | . . 3 . 3 7 Guns 11 | . . 3 . 2 6 Cannons 2 | . . . . 1 1 Classes Destroyed 8 | 2 2 1 . 2 1 Builder 1 | . . . . 1 . Tunneler 3 | 2 1 . . . . Hauler 1 | . 1 . . . . Recycler 1 | 1 . . . . . Watcher 1 | . 1 . . . . Swarmer 6 | . . 3 . . 3 Grunt 6 | . . . . 3 3 Sentry 1 | . . . . . 1 Best Kill Streak 3 | 3 3 3 . 3 3 Combat Bots Only 3 | . . 3 . 3 3 Max Kills in Single Turn 1 | 1 1 1 . 1 1 Gunslinging . | . . . . . . Exploded . | . . . . . . Melee . | . . . . . . Uniques/NPCs Destroyed . | . . . . . . Combat | -11 -10 -10 -10 -9 -8 -------- Run | Yrd Mat Min Exi Min Mat Hostile Shots Fired 190 | . . 8 . 32 150 Missed 46 | . . 3 . 8 35 Hits 144 | . . 5 . 24 115 Projectile 144 | . . 5 . 24 115 Critical Strikes 5 | . . . . . 5 Damage Taken 2096 | . . 37 . 293 1766 Core 592 | . . . . 36 556 Absorbed by Shields . | . . . . . . Core Remaining (%) 92 | 100 . . . 85 . Volleys Fired 86 | 6 7 7 . 12 54 Largest 2 | 2 2 2 . 2 2 Hottest 90 | 40 40 40 . 80 90 Shots Fired 122 | 12 14 14 . 21 61 Gun 93 | 12 14 14 . 19 34 Cannon 26 | . . . . 2 24 Launcher 3 | . . . . . 3 Special . | . . . . . . Kinetic 80 | 12 14 14 . 19 21 Thermal 39 | . . . . 2 37 Explosive 3 | . . . . . 3 Electromagnetic . | . . . . . . Robot Hit Streak 32 | 6 3 3 . 17 32 Robot Miss Streak 3 | 2 3 3 . 1 3 Penetration Max . | . . . . . . Secondary Targets 1 | . . 1 . . . Max Gunslinging Chain 1 | . . 1 . . . Shots Hit Robots 89 | 7 7 6 . 20 49 Core Hits 38 | 4 4 3 . 6 21 Critical Kills . | . . . . . . Critical Parts Destroyed . | . . . . . . Critical Strikes 1 | . . . . . 1 Burn 1 | . . . . . 1 Melee Attacks . | . . . . . . Impact . | . . . . . . Slashing . | . . . . . . Piercing . | . . . . . . Sneak Attacks . | . . . . . . Combat Hostiles . | . . . . . . Follow-up Attacks . | . . . . . . Damage Inflicted 1268 | 83 109 79 . 267 730 Guns 881 | 83 109 79 . 228 382 Cannons 298 | . . . . 35 263 Explosions 78 | . . . . . 78 Melee . | . . . . . . Ramming 11 | . . . . 4 7 Kinetic 681 | 83 109 79 . 228 182 Thermal 498 | . . . . 35 463 Explosive 78 | . . . . . 78 Electromagnetic . | . . . . . . Impact . | . . . . . . Slashing . | . . . . . . Piercing . | . . . . . . Highest Corruption . | . . . . . . Average Corruption . | . . . . . . Corruption Purged . | . . . . . . Corruption Blocked . | . . . . . . Overload Shots . | . . . . . . Overflow Damage . | . . . . . . Projectiles . | . . . . . . Explosions . | . . . . . . Melee . | . . . . . . Knockbacks . | . . . . . . Impact . | . . . . . . Kinetic . | . . . . . . Secondary . | . . . . . . Self-Inflicted Damage . | . . . . . . Shots . | . . . . . . Rammed 1 | . . . . . 1 Targets Rammed 2 | . . . . 1 1 Kicked . | . . . . . . Crushed 1 | . . . . 1 . Highest Temperature 308 | . . . . 42 308 Average Temperature 122 | . . . . 12 138 Received Heat Transfer 1053 | . . . . 162 891 Effects 1 | . . . . . 1 Matter Decay 1 | . . . . . 1 Siege Activations . | . . . . . . Martial Activations . | . . . . . . Shielding Activations . | . . . . . . Robots Disrupted . | . . . . . . Combat Hostiles . | . . . . . . Robots Corrupted . | . . . . . . Combat Hostiles . | . . . . . . Parts Fried . | . . . . . . Impact Corruptions . | . . . . . . Robots Melted . | . . . . . . Combat Hostiles . | . . . . . . Parts Melted 3 | . . . . . 3 Heat Transferred 1184 | . . . . 74 1110 Parts Sabotaged . | . . . . . . Parts Stolen . | . . . . . . Parts Stripped . | . . . . . . Power Chain Reactions . | . . . . . . Alert | -11 -10 -10 -10 -9 -8 ------- Run | Yrd Mat Min Exi Min Mat Maximum Alert Level . | . . . . . . Low Security (%) 100 | 100 100 100 . 100 100 Level 1 . | . . . . . . Level 2 . | . . . . . . Level 3 . | . . . . . . Level 4 . | . . . . . . Level 5 . | . . . . . . High Security . | . . . . . . Max Security . | . . . . . . Peak Influence 90 | 10 7 70 . 60 90 Initial 16 | . . . . . 16 Average 10 | 1 1 12 . 4 23 Influence Increases 370 | 15 19 70 . 75 191 Destroy 0b10 Robot/C 260 | . . 60 . 60 140 Destroy 0b10 Robot/NC 35 | 15 15 . . 5 . Destroy Leader 54 | . 4 10 . 10 30 Destroy Structure 21 | . . . . . 21 Influence Decreases 370 | 15 19 60 10 31 235 Entered New Map 38 | . . . 10 . 28 Time Decay 241 | 15 19 60 . 21 126 Lost Part 91 | . . . . 10 81 Squads Dispatched 2 | . . . . . 2 Investigation . | . . . . . . Extermination . | . . . . . . Reinforcement 2 | . . . . . 2 Assault . | . . . . . . Garrison . | . . . . . . Intercept . | . . . . . . Searches Triggered . | . . . . . . Construction Impeded . | . . . . . . Haulers Reinforced . | . . . . . . Active Scanning Responses . | . . . . . . Cargo Convoy Interrupts . | . . . . . . Stealth | -11 -10 -10 -10 -9 -8 --------- Run | Yrd Mat Min Exi Min Mat Distress Signals . | . . . . . . Communications Jammed . | . . . . . . Distress Signals . | . . . . . . Times Spotted 29 | . 4 3 . 3 19 Peak Tracking Total 7 | . 2 2 . 3 7 Tactical Retreats . | . . . . . . Traps | -11 -10 -10 -10 -9 -8 ------- Run | Yrd Mat Min Exi Min Mat Traps Triggered . | . . . . . . Indirectly . | . . . . . . Trap Hack Attempts . | . . . . . . Triggered . | . . . . . . Disarmed . | . . . . . . Reprogrammed . | . . . . . . Reused . | . . . . . . Traps Extracted . | . . . . . . Installed 2 | . . 2 . . . Triggered . | . . . . . . Machines | -11 -10 -10 -10 -9 -8 ---------- Run | Yrd Mat Min Exi Min Mat Machines Disabled . | . . . . . . Max in Single Turn . | . . . . . . Machines Repaired . | . . . . . . Machines Dismantled . | . . . . . . Machines Sabotaged . | . . . . . . Overloaded Fab Kills . | . . . . . . Hacking | -11 -10 -10 -10 -9 -8 --------- Run | Yrd Mat Min Exi Min Mat Machines Accessed . | . . . . . . Terminals . | . . . . . . Fabricators . | . . . . . . Repair Stations . | . . . . . . Recycling Units . | . . . . . . Scanalyzers . | . . . . . . Garrison Access . | . . . . . . Total Hacks . | . . . . . . Successful . | . . . . . . Failed . | . . . . . . Catastrophic . | . . . . . . Database Lockouts . | . . . . . . Manual . | . . . . . . Terminals . | . . . . . . Fabricators . | . . . . . . Repair Stations . | . . . . . . Recycling Units . | . . . . . . Scanalyzers . | . . . . . . Garrison Access . | . . . . . . Terminal Hacks . | . . . . . . Fabricator Hacks . | . . . . . . Repair Station Hacks . | . . . . . . Recycling Unit Hacks . | . . . . . . Scanalyzer . | . . . . . . Garrison Access Hacks . | . . . . . . Unauthorized Hacks . | . . . . . . Terminals . | . . . . . . Fabricators . | . . . . . . Repair Stations . | . . . . . . Recycling Units . | . . . . . . Scanalyzers . | . . . . . . Garrison Access . | . . . . . . Data Cores Recovered . | . . . . . . Used . | . . . . . . Hacking Detections . | . . . . . . Full Trace Events . | . . . . . . Feedback Events . | . . . . . . Feedback Blocked . | . . . . . . Robot Schematics Acquired . | . . . . . . Robots Built . | . . . . . . Authchips . | . . . . . . Time . | . . . . . . Total Robot Build Rating . | . . . . . . Part Schematics Acquired . | . . . . . . Parts Built . | . . . . . . Authchips . | . . . . . . Time . | . . . . . . Total Part Build Rating . | . . . . . . Part Studies Acquired . | . . . . . . Parts Repaired . | . . . . . . Time . | . . . . . . Parts Recycled . | . . . . . . Recycled Matter . | . . . . . . Retrieved Matter . | . . . . . . Retrieved Components . | . . . . . . Parts Scanalyzed . | . . . . . . Part Schematics Acquired . | . . . . . . Parts Damaged . | . . . . . . Bothacking | -11 -10 -10 -10 -9 -8 ------------ Run | Yrd Mat Min Exi Min Mat Used RIF Installer . | . . . . . . Robots Hacked . | . . . . . . Non-combat . | . . . . . . Combat . | . . . . . . Robot Hacks Applied . | . . . . . . Relay Couplers Released . | . . . . . . Fabnet Peak Effective % . | . . . . . . Robots Rewired . | . . . . . . Allies Hacked . | . . . . . . Hacks Repelled . | . . . . . . Allies | -11 -10 -10 -10 -9 -8 -------- Run | Yrd Mat Min Exi Min Mat Total Allies . | . . . . . . Largest Group . | . . . . . . Highest-Rated Group . | . . . . . . Highest-Rated Ally . | . . . . . . Total Orders . | . . . . . . Ally Attacks . | . . . . . . Total Damage . | . . . . . . Kills . | . . . . . . Allies Corrupted . | . . . . . . Allies Melted . | . . . . . . Intel | -11 -10 -10 -10 -9 -8 ------- Run | Yrd Mat Min Exi Min Mat Active Infowar (turns) 1929 | 20 192 398 756 506 57 Seismic 1929 | 20 192 398 756 506 57 Robot Analysis Total . | . . . . . . Derelict Logs Recovered 1 | . . . . 1 . Drone Launches . | . . . . . . Drone Recoveries . | . . . . . . Exploration | -11 -10 -10 -10 -9 -8 ------------- Run | Yrd Mat Min Exi Min Mat Turns Passed 2410 | 122 192 398 756 506 436 Spaces Moved 1395 | 64 103 234 473 292 229 Core 71 | 11 . . . . 60 Treads 1295 | 53 103 234 473 292 140 Legs 29 | . . . . . 29 Wheels . | . . . . . . Hover . | . . . . . . Flight . | . . . . . . Fastest Speed 50 | 50 160 160 160 160 50 Average Speed 154 | 141 160 160 160 160 130 Slowest Speed 160 | 160 160 160 160 160 160 Overloaded Moves . | . . . . . . Propulsion Burnouts . | . . . . . . Robots Hopped . | . . . . . . Potential Cave-ins . | . . . . . . Cave-ins Triggered . | . . . . . . Exploration Rate (%) 44 | 4 20 57 88 67 29 Regions Visited 5 Branch Regions 3 Pre-discovered Areas . | . . . . . . Known Exits Taken . | . . . . . . Unknown Exits Taken 5 | 1 1 1 1 1 . Scrap Searched 1 | . . 1 . . . Spaces Dug . | . . . . . . Terrain Destroyed 22 | . . . . . 22 Melee . | . . . . . . Projectile . | . . . . . . AOE 22 | . . . . . 22 Terrain Rammed . | . . . . . . Walls Destroyed . | . . . . . . Machines Disabled . | . . . . . . Actions | -11 -10 -10 -10 -9 -8 --------- Run | Yrd Mat Min Exi Min Mat Total 1528 | 81 117 244 472 309 305 Wait 7 | . . . . 4 3 Move 1390 | 63 102 233 472 291 229 Hop . | . . . . . . Pick Up 11 | 2 5 2 . . 2 Fast Attach 15 | 8 . . . . 7 Attach 7 | . . . . 1 6 Detach 3 | 1 . . . . 2 Swap 1 | . 1 . . . . Drop 4 | 1 2 . . . 1 Fire 86 | 6 7 7 . 12 54 Melee . | . . . . . . Ram . | . . . . . . Kick . | . . . . . . Crush 2 | . . . . 1 1 Escape Stasis . | . . . . . . Rewire . | . . . . . . Trap 2 | . . 2 . . . Miscellaneous . | . . . . . . Route ------- -11/Scrapyard -10/Materials -10/Mines -10/Exiles -9/Mines -8/Materials (discovered 2 exits: *Fac x2) History --------- Turn | Location | Event 6 | -11/Scrapyard | Discovered new exit (range 16) 123 | -11/Scrapyard | Entered Materials 215 | -10/Materials | Discovered new exit (range 12) 301 | -10/Materials | Build established: Mutant 315 | -10/Materials | Entered Mines 514 | -10/Mines | Found a hidden stash of uninstalled traps 705 | -10/Mines | Deemed a non-threat by the Exiles lab entrance 707 | -10/Mines | Discovered new exit (range 5) 713 | -10/Mines | Entered Exiles 713 | -10/Exiles | Found Exiles lab abandoned 1446 | -10/Exiles | Discovered new exit (range 15) 1469 | -10/Exiles | Entered Mines 1810 | -9/Mines | Learned location of 1 exit from Materials 1898 | -9/Mines | Discovered new exit (range 10) 1975 | -9/Mines | Entered Materials 1975 | -8/Materials | Evolved 4 slots: Power x1, Propulsion x1, Utility x2 1976 | -8/Materials | Identified exit to Factory 2126 | -8/Materials | Lost 8 parts (2p2n1u3w) 2155 | -8/Materials | Core integrity fell below 50% 2223 | -8/Materials | Lost 3 parts (1n1u1w) 2380 | -8/Materials | Core integrity fell below 20% 2409 | -8/Materials | Discovered exit to Factory (range 9) 2411 | -8/Materials | Destroyed by G-47 Trooper with Particle Gun Last Messages --------------- 02364_ Processing Tank disabled. 02369_ K-01 Serf collects debris. 02375_ Acquired Lrg. Storage Unit. 02377_ K-01 Serf collects debris. 02383_ Lgt. Treads destroyed. 02384_ K-01 Serf cleans the Processing Tank. 02385_ Lgt. Treads destroyed. 02386_ Reaction Control System destroyed. 02388_ Dropped Sml. Storage Unit. 02389_ K-01 Serf cleans the Processing Tank. 02404_ O-16 Technician: "IFF HANDSHAKE FAILED. SECURING TERMINAL." 02404_ O-16 Technician uses terminal to summon reinforcements. 02404_ ALERT: Hostiles spotted, dispatching reinforcements to Terminal M011. 02404_ O-16 Technician locks terminal. 02409_ EXIT=FOUND: FACTORY Map ----- +----------------------------------------------------+ | ?????????????????????????????????????? | | ?????????????????????????????????????? | | ?????????????????????????????????????? | | ?????????????????????????????????????? | | ????????? ??????????????????????????? | | ????????? #?????????????????????????? | | ????????# #?????????????????????????? | | ????????# #????+##+#????????????????? | | ????????# #???? #????????????????? | | ####????# #???? #????????????????? | | ?????# ##### #????????????????? | | ##??????# #????????????????? | | "#??????# / ?????????????????? | | T#??????# ??????????????????? | | "#??????# ???????????????????? | | #???????# """ #????????????????????? | | ######### """ ########?????????????? | | """ ## """ #?????????????? | | / """ #?????????????? | | ## """ #?????????????? | | #########+### ## #?????????????? | | ??????? ## ## ] #?????????????? | | ????? ## ##! #?????????????? | | ??? ## ## #?????????????? | | ??## """"" # ]###+######+####?????? | | ???# """"" # o a @ #?????? | | ???# """"" # T g< #?????? | | ???# # g #?????? | | ???#??[ # ! ###+######/####?????? | | ???????? #######????????? ???????? | | ?????????? #????????????????"" ??????? | | ?????????? #????????????????""" #????? | | ???????????#?????????????????"" #????? | | ?????????????????????????????"? ?????? | | ?????????????????????????????????????? | | ?????????????????????????????????????? | | #############????????????????????????? | | #????????????????????????? | | #????????????????????????? | | #????????????????????????? | | #????????????????????????? | | #????????????????????????? | | ######### #????????????????????????? | | #?# #????????????????????????? | | #?# #????????????????????????? | | " """???# #????????????????????????? | | " """???# #????????????????????????? | | " """ ## #????????????????????????? | | #?# #????????????????????????? | | #######?# #????????????????????????? | +----------------------------------------------------+ Best States ------------- Heat Dissipation 31 Energy Generation 15 Energy Capacity 400 Matter Stores 300 Matter Capacity 300 Sight Range 16 Terrain Scan Density 10 Armor Coverage 150 Evasion (%) 55 Targeting Accuracy 8 Recoil Reduction 2 Item Schematics ----------------- None Robot Schematics ------------------ None Fabricated ------------ Nothing Repaired ---------- Nothing Studied --------- None Alien Tech Used ----------------- None Achievements -------------- None Challenges ------------ None Game ------ Seed InsulatedRapidJoltstriker Manual? 0 Play Time 00:12:14 Cumulative 181.7 hours Start 2026.08.30 @ 02:10:08 End 2026.08.30 @ 02:20:33 Sessions 1 Manual Loads 0 Difficulty Rogue Special Mode None Game No. 359 Rogue 359 Adventurer 0 Explorer 0 Win Type - Total 2 Types 2/0/0/0/0/0/0/0/0/0 Lore% 59 Gallery% 60 Achievement% 46 Wizard Run 0 Options --------- Layout 2 ASCII 0 Keyboard 1 Movement Arrows Keybinds 0 Fullscreen 1 Font 24/Smallcaps Map View 50x44 Zoom Use 0% Tactical HUD 1 Map Filters NONE Filters NONE Steam 1 RUN: 76776030-6841-4dfa-84c5-9d5e3176a23f